fUSD/lending_fUSD_20240105
["ID","MTS","AMOUNT","RATE_DAILY","PERIOD"]
[310259191,1704424317165,-942.43204136,0.000386,12]
[310259192,1704424317174,-151.0,0.000386,7]
[310259193,1704424317183,-151.0,0.000386,7]
[310259194,1704424317192,-194.293374,0.000386,7]
[310259195,1704424317201,-194.293374,0.000386,7]
[310259196,1704424317210,-151.0,0.000386,7]
[310259197,1704424317219,-183.248498,0.000386,7]
[310259198,1704424317228,-183.248498,0.000386,7]
[310259199,1704424317237,-151.0,0.000386,7]
[310259200,1704424317247,-151.0,0.000386,7]
[310259201,1704424317256,-151.0,0.000386,7]
[310259202,1704424317265,-184.30862848,0.00038625,14]
[310259203,1704424317274,-167.70091815,0.00038627,14]
[310259204,1704424317283,-180.69,0.0003863,2]
[310259205,1704424317292,-500.0,0.0003863,3]
[310259206,1704424317301,-760.75,0.0003863,3]
[310259207,1704424317309,-500.0,0.0003863,3]
[310259208,1704424317318,-500.0,0.0003863,3]
[310259209,1704424317327,-583.53,0.0003863,3]
[310259210,1704424317336,-500.0,0.0003863,3]
[310259211,1704424317346,-500.0,0.0003863,3]
[310259212,1704424317355,-500.0,0.0003863,3]
[310259213,1704424317364,-500.0,0.0003863,3]
[310259214,1704424317374,-669.12,0.0003863,3]
[310259215,1704424317383,-500.0,0.0003863,3]
[310259216,1704424317392,-517.52349408,0.0003863,3]
[310259217,1704424317401,-500.0,0.0003863,3]
[310259218,1704424317410,-500.0,0.0003863,3]
[310259219,1704424317420,-530.89,0.0003863,3]
[310259220,1704424317428,-500.0,0.0003863,3]
[310259221,1704424317439,-500.0,0.0003863,3]
[310259222,1704424317449,-230.04999674,0.0003863,3]
[310259223,1704424317458,-500.0,0.0003863,3]
[310259224,1704424317469,-500.0,0.0003863,3]
[310259225,1704424317479,-500.0,0.0003863,3]
[310259226,1704424317489,-500.0,0.0003863,3]
[310259227,1704424317498,-500.0,0.0003863,3]
[310259228,1704424317507,-500.0,0.0003863,3]
[310259229,1704424317517,-500.0,0.0003863,3]
[310259230,1704424317526,-500.0,0.0003863,3]
[310259231,1704424317535,-500.0,0.0003863,3]
[310259232,1704424317545,-500.0,0.0003863,3]
[310259233,1704424317555,-500.0,0.0003863,3]
[310259234,1704424317564,-500.0,0.0003863,3]
[310259235,1704424317573,-528.59904223,0.0003863,3]
[310259236,1704424317584,-500.0,0.0003863,3]
[310259237,1704424317594,-500.0,0.0003863,3]
[310259238,1704424317604,-500.0,0.0003863,3]
[310259239,1704424317613,-500.0,0.0003863,3]
[310259240,1704424317624,-954.7,0.0003863,3]
[310259241,1704424317634,-347.64895517,0.0003863,3]
[310259242,1704424317644,-500.0,0.0003863,3]
[310259243,1704424317653,-581.56221199,0.0003863,3]
[310259244,1704424317662,-500.0,0.0003863,3]
[310259245,1704424317670,-500.0,0.0003863,3]
[310259246,1704424317679,-500.0,0.0003863,3]
[310259247,1704424317688,-627.35244251,0.0003863,3]
[310259248,1704424317697,-500.0,0.0003863,3]
[310259249,1704424317705,-500.0,0.0003863,3]
[310259250,1704424317715,-500.0,0.0003863,3]
[310259251,1704424317724,-158.81715481,0.0003863,3]
[310259252,1704424317735,-500.0,0.0003863,3]
[310259253,1704424317745,-874.14,0.0003863,3]
[310259254,1704424317756,-282.80443196,0.0003863,3]
[310259255,1704424317765,-500.0,0.0003863,3]
[310259256,1704424317774,-500.0,0.0003863,3]
[310259257,1704424317950,-500.0,0.0003863,3]
[310259258,1704424317959,-500.0,0.0003863,3]
[310259259,1704424317969,-500.0,0.0003863,3]
[310259260,1704424317979,-326.32800609,0.0003863,3]
[310259261,1704424317988,-593.83,0.0003863,3]
[310259262,1704424317997,-3647.06,0.0003863,3]
[310259263,1704424318006,-523.05,0.0003863,3]
[310259264,1704424318015,-569.6,0.0003863,3]
[310259265,1704424318025,-500.0,0.0003863,3]
[310259266,1704424318034,-1578.13,0.0003863,3]
[310259267,1704424318044,-601.34,0.0003863,3]
[310259268,1704424318054,-602.04,0.0003863,3]
[310259269,1704424318063,-500.0,0.0003863,3]
[310259270,1704424318073,-500.0,0.0003863,3]
[310259271,1704424318082,-4769.97,0.0003863,3]
[310259272,1704424318091,-500.0,0.0003863,3]
[310259273,1704424318101,-500.0,0.0003863,3]
[310259274,1704424318110,-2681.68,0.0003863,3]
[310259275,1704424318120,-3006.36,0.0003863,3]
[310259276,1704424318129,-774.17,0.0003863,3]
[310259277,1704424318138,-500.0,0.0003863,3]
[310259278,1704424318147,-229.56694985,0.0003863,3]
[310259279,1704424318156,-776.16,0.0003863,3]
[310259280,1704424318166,-1909.11,0.0003863,3]
[310259281,1704424318175,-1238.67,0.0003863,3]
[310259282,1704424318184,-529.17,0.0003863,3]
[310259283,1704424318194,-3090.15,0.0003863,3]
[310259284,1704424318203,-500.0,0.0003863,3]
[310259285,1704424318212,-5012.71,0.0003863,3]
[310259286,1704424318222,-500.0,0.0003863,3]
[310259287,1704424318231,-1857.63,0.0003863,3]
[310259288,1704424318240,-4528.66,0.0003863,3]
[310259289,1704424318249,-704.83,0.0003863,3]
[310259290,1704424318258,-1953.12,0.0003863,3]
[310259291,1704424318267,-2812.81,0.0003863,3]
[310259292,1704424318277,-778.9,0.0003863,3]
[310259293,1704424318286,-1569.53,0.0003863,3]
[310259294,1704424318296,-1388.55,0.0003863,3]
[310259295,1704424318305,-500.0,0.0003863,3]
[310259296,1704424318315,-462.81221718,0.0003863,3]
[310259297,1704424318324,-971.61,0.0003863,3]
[310259298,1704424318333,-2118.07,0.0003863,3]
[310259299,1704424318343,-1026.23,0.0003863,3]
[310259300,1704424318353,-528.77,0.0003863,3]
[310259301,1704424318361,-747.51,0.0003863,3]
[310259302,1704424318370,-500.0,0.0003863,3]
[310259303,1704424318380,-1256.48,0.0003863,3]
[310259304,1704424318389,-192.10062405,0.0003863,3]
[310259305,1704424318398,-1231.35,0.0003863,3]
[310259306,1704424318408,-2582.67,0.0003863,3]
[310259307,1704424318417,-1321.69,0.0003863,3]
[310259308,1704424318426,-985.31,0.0003863,3]
[310259309,1704424318435,-804.83,0.0003863,3]
[310259310,1704424318445,-672.09,0.0003863,3]
[310259311,1704424318454,-500.0,0.0003863,3]
[310259312,1704424318463,-500.0,0.0003863,3]
[310259313,1704424318473,-1836.89,0.0003863,3]
[310259314,1704424318482,-1010.49,0.0003863,3]
[310259315,1704424318492,-762.87,0.0003863,3]
[310259316,1704424318501,-500.0,0.0003863,3]
[310259317,1704424318511,-786.79,0.0003863,3]
[310259318,1704424318520,-5862.64,0.0003863,3]
[310259319,1704424318529,-934.12,0.0003863,3]
[310259320,1704424318538,-1785.52,0.0003863,3]
[310259321,1704424318548,-500.0,0.0003863,3]
[310259322,1704424318557,-912.64,0.0003863,3]
[310259323,1704424318566,-808.85,0.0003863,3]
[310259324,1704424318575,-882.36,0.0003863,3]
[310259325,1704424318584,-1259.24,0.0003863,3]
[310259326,1704424318595,-13869.62,0.0003863,3]
[310259327,1704424318605,-500.0,0.0003863,3]
[310259328,1704424318615,-500.0,0.0003863,3]
[310259329,1704424318626,-3101.88,0.0003863,3]
[310259330,1704424318636,-1091.42,0.0003863,3]
[310259331,1704424318646,-785.92,0.0003863,3]
[310259332,1704424318657,-586.04,0.0003863,3]
[310259333,1704424318666,-500.0,0.0003863,3]
[310259334,1704424318675,-1268.16,0.0003863,3]
[310259335,1704424318684,-606.27,0.0003863,3]
[310259336,1704424318694,-1189.46,0.0003863,3]
[310259337,1704424318703,-593.38,0.0003863,3]
[310259338,1704424318713,-1481.99,0.0003863,3]
[310259339,1704424318722,-500.0,0.0003863,3]
[310259340,1704424318733,-1085.76,0.0003863,3]
[310259341,1704424318744,-142.05335142,0.0003863,3]
[310259342,1704424318921,-500.0,0.00037534,3]
[310259343,1704424318931,-964.45664858,0.0003863,3]
[310259344,1704424318941,-500.0,0.0003863,3]
[310259345,1704424318953,-1351.81,0.0003863,3]
[310259346,1704424318962,-500.0,0.0003863,3]
[310259347,1704424318971,-500.0,0.0003863,3]
[310259348,1704424318980,-545.65,0.0003863,3]
[310259349,1704424318989,-765.09,0.0003863,3]
[310259350,1704424318998,-537.24,0.0003863,3]
[310259351,1704424319007,-1151.66,0.0003863,3]
[310259352,1704424319016,-500.0,0.0003863,3]
[310259353,1704424319025,-779.5,0.0003863,3]
[310259354,1704424319034,-1306.66,0.0003863,3]
[310259355,1704424319044,-572.88,0.0003863,3]
[310259356,1704424319054,-500.0,0.0003863,3]
[310259357,1704424319063,-5037.07935142,0.0003863,3]
[310259358,1704424319075,-3151.23064858,0.0003863,3]
[310259359,1704424319086,-500.0,0.0003863,3]
[310259360,1704424319097,-1063.95,0.0003863,3]
[310259361,1704424319106,-798.53,0.0003863,3]
[310259362,1704424319117,-528.36,0.0003863,3]
[310259363,1704424319129,-500.0,0.0003863,3]
[310259364,1704424319138,-920.16,0.0003863,3]
[310259365,1704424319148,-500.0,0.0003863,3]
[310259366,1704424319157,-133.8812415,0.0003863,3]
[310259367,1704424319169,-366.1187585,0.0003863,3]
[310259368,1704424319178,-663.44,0.0003863,3]
[310259369,1704424319187,-1622.28,0.0003863,3]
[310259370,1704424319196,-711.28,0.0003863,3]
[310259371,1704424319205,-500.0,0.0003863,3]
[310259372,1704424319214,-180.86367963,0.0003863,3]
[310259373,1704424319224,-502.3,0.0003863,3]
[310259374,1704424319233,-2080.27,0.0003863,3]
[310259375,1704424319242,-835.35,0.0003863,3]
[310259376,1704424319252,-500.0,0.0003863,3]
[310259377,1704424319261,-500.0,0.0003863,3]
[310259378,1704424319271,-500.0,0.0003863,3]
[310259379,1704424319280,-962.88766414,0.0003863,3]
[310259380,1704424319293,-1452.89233586,0.0003863,3]
[310259381,1704424319302,-558.41,0.0003863,3]
[310259382,1704424319311,-500.0,0.0003863,3]
[310259383,1704424319321,-497.43544093,0.0003863,3]
[310259384,1704424319332,-2.56455907,0.0003863,3]
[310259385,1704424319341,-500.0,0.0003863,3]
[310259386,1704424319351,-542.19,0.0003863,3]
[310259387,1704424319360,-500.0,0.0003863,3]
[310259388,1704424319369,-500.0,0.0003863,3]
[310259389,1704424319380,-1511.27,0.0003863,3]
[310259390,1704424319388,-500.0,0.0003863,3]
[310259391,1704424319398,-4392.23,0.0003863,3]
[310259392,1704424319407,-1318.19,0.0003863,3]
[310259393,1704424319417,-752.98954091,0.0003863,3]
[310259394,1704424319467,-115.94045909,0.0003863,3]
[310259395,1704424319479,-500.0,0.0003863,3]
[310259396,1704424319489,-500.0,0.0003863,3]
[310259397,1704424319498,-500.0,0.0003863,3]
[310259398,1704424319507,-150.0,0.00038669,60]
[310259399,1704424319516,-150.0,0.0003867,60]
[310259400,1704424319525,-150.0,0.0003867,60]
[310259401,1704424319534,-150.0,0.0003867,14]
[310259402,1704424319544,-295.09,0.0003867,60]
[310259403,1704424319553,-150.0,0.0003867,60]
[310259404,1704424319562,-359.0,0.0003867,60]
[310259405,1704424319571,-150.0,0.0003867,60]
[310259406,1704424319580,-150.74,0.0003867,60]
[310259407,1704424319592,-150.0,0.0003867,60]
[310259408,1704424319601,-150.0,0.0003867,60]
[310259409,1704424319610,-290.21,0.0003867,60]
[310259410,1704424319620,-3836.0,0.0003867,60]
[310259411,1704424319629,-1307.0,0.0003867,60]
[310259412,1704424319639,-1307.0,0.0003867,60]
[310259413,1704424319648,-150.0,0.0003867,60]
[310259414,1704424319657,-359.0,0.0003867,60]
[310259415,1704424319667,-1684.0,0.0003867,60]
[310259416,1704424319675,-152.43,0.0003867,60]
[310259417,1704424319684,-150.0,0.0003867,60]
[310259418,1704424319696,-1307.0,0.0003867,60]
[310259419,1704424319706,-3836.0,0.0003867,60]
[310259420,1704424319715,-1307.0,0.0003867,60]
[310259421,1704424319726,-1684.0,0.0003867,60]
[310259422,1704424319738,-265.0,0.0003867,60]
[310259423,1704424319748,-362.0,0.0003867,60]
[310259424,1704424319758,-868.0,0.0003867,60]
[310259425,1704424319767,-319.0,0.0003867,60]
[310259426,1704424319777,-854.0,0.0003867,60]
[310259427,1704424319785,-155.0,0.0003867,60]
[310259428,1704424319794,-164.0,0.0003867,60]
[310259429,1704424319803,-362.0,0.0003867,60]
[310259430,1704424319812,-868.0,0.0003867,60]
[310259431,1704424319822,-265.0,0.0003867,60]
[310259432,1704424319831,-854.0,0.0003867,60]
[310259433,1704424319840,-319.0,0.0003867,60]
[310259434,1704424319851,-155.0,0.0003867,60]
[310259435,1704424319860,-164.0,0.0003867,60]
[310259436,1704424319870,-150.0,0.00038679,60]
[310259437,1704424319882,-150.0,0.0003868,14]
[310259438,1704424319891,-150.0,0.0003868,60]
[310259439,1704424319899,-150.0,0.0003868,60]
[310259440,1704424319909,-150.02,0.0003868,60]
[310259441,1704424319918,-359.0,0.0003868,60]
[310259442,1704424319926,-150.0,0.0003868,60]
[310259443,1704424319935,-150.0,0.0003868,60]
[310259444,1704424319946,-150.0,0.0003868,60]
[310259445,1704424319956,-150.0,0.0003868,60]
[310259446,1704424319965,-150.0,0.0003868,60]
[310259447,1704424319974,-3836.0,0.0003868,60]
[310259448,1704424319983,-274.31,0.0003868,14]
[310259449,1704424319991,-1307.0,0.0003868,60]
[310259450,1704424320001,-1307.0,0.0003868,60]
[310259451,1704424320010,-150.0,0.0003868,60]
[310259452,1704424320019,-359.0,0.0003868,60]
[310259453,1704424320028,-1684.0,0.0003868,60]
[310259454,1704424320037,-150.0,0.0003868,60]
[310259455,1704424320046,-150.0,0.0003868,60]
[310259456,1704424320055,-3836.0,0.0003868,60]
[310259457,1704424320065,-1307.0,0.0003868,60]
[310259458,1704424320074,-1307.0,0.0003868,60]
[310259459,1704424320083,-270.64,0.0003868,60]
[310259460,1704424320093,-359.0,0.0003868,60]
[310259461,1704424320102,-1684.0,0.0003868,60]
[310259462,1704424320111,-150.0,0.0003868,60]
[310259463,1704424320120,-361.66,0.0003868,60]
[310259464,1704424320130,-3836.0,0.0003868,60]
[310259465,1704424320140,-1307.0,0.0003868,60]
[310259466,1704424320149,-1307.0,0.0003868,60]
[310259467,1704424320158,-1684.0,0.0003868,60]
[310259468,1704424320167,-1307.69,0.0003868,60]
[310259469,1704424320176,-3838.5,0.0003868,60]
[310259470,1704424320185,-1692.31,0.0003868,60]
[310259471,1704424320194,-1311.33,0.0003868,60]
[310259472,1704424320203,-265.0,0.0003868,60]
[310259473,1704424320212,-362.0,0.0003868,60]
[310259474,1704424320224,-868.0,0.0003868,60]
[310259475,1704424320233,-319.0,0.0003868,60]
[310259476,1704424320242,-155.0,0.0003868,60]
[310259477,1704424320251,-854.0,0.0003868,60]
[310259478,1704424320260,-164.0,0.0003868,60]
[310259479,1704424320269,-362.0,0.0003868,60]
[310259480,1704424320278,-868.0,0.0003868,60]
[310259481,1704424320287,-265.0,0.0003868,60]
[310259482,1704424320296,-319.0,0.0003868,60]
[310259483,1704424320306,-854.0,0.0003868,60]
[310259484,1704424320315,-155.0,0.0003868,60]
[310259485,1704424320325,-164.0,0.0003868,60]
[310259486,1704424320334,-362.0,0.0003868,60]
[310259487,1704424320343,-868.0,0.0003868,60]
[310259488,1704424320352,-265.0,0.0003868,60]
[310259489,1704424320362,-366.55,0.0003868,60]
[310259490,1704424320371,-854.0,0.0003868,60]
[310259491,1704424320381,-319.0,0.0003868,60]
[310259492,1704424320390,-873.84,0.0003868,60]
[310259493,1704424320399,-155.0,0.0003868,60]
[310259494,1704424320408,-164.0,0.0003868,60]
[310259495,1704424320418,-855.0,0.0003868,60]
[310259496,1704424320428,-320.19,0.0003868,60]
[310259497,1704424320437,-270.32,0.0003868,60]
[310259498,1704424320447,-160.35,0.0003868,60]
[310259499,1704424320457,-172.3,0.0003868,60]
[310259500,1704424320466,-151.0,0.0003868,7]
[310259501,1704424320476,-151.0,0.0003868,7]
[310259502,1704424320485,-151.0,0.0003868,7]
[310259503,1704424320495,-151.0,0.0003868,7]
[310259504,1704424320505,-151.0,0.0003868,7]
[310259505,1704424320514,-500.0,0.00038689,7]
[310259506,1704424320524,-150.0,0.00038689,2]
[310259507,1704424320534,-1528.41958395,0.00038689,2]
[310259508,1704424320543,-150.0,0.0003869,14]
[310259509,1704424320554,-150.0,0.0003869,60]
[310259510,1704424320564,-150.0,0.0003869,60]
[310259511,1704424320573,-150.0,0.0003869,60]
[310259512,1704424320582,-212.7,0.0003869,60]
[310259513,1704424320594,-359.0,0.0003869,60]
[310259514,1704424320603,-150.0,0.0003869,60]
[310259515,1704424320612,-150.0,0.0003869,60]
[310259516,1704424320622,-150.0,0.0003869,60]
[310259517,1704424320632,-150.0,0.0003869,60]
[310259518,1704424320641,-150.0,0.0003869,60]
[310259519,1704424320650,-150.0,0.0003869,14]
[310259520,1704424320659,-3836.0,0.0003869,60]
[310259521,1704424320668,-1307.0,0.0003869,60]
[310259522,1704424320677,-1307.0,0.0003869,60]
[310259523,1704424320686,-1684.0,0.0003869,60]
[310259524,1704424320695,-150.0,0.0003869,60]
[310259525,1704424320704,-359.0,0.0003869,60]
[310259526,1704424320716,-150.0,0.0003869,60]
[310259527,1704424320726,-150.0,0.0003869,60]
[310259528,1704424320736,-217.3,0.0003869,60]
[310259529,1704424320745,-3836.0,0.0003869,60]
[310259530,1704424320756,-1307.0,0.0003869,60]
[310259531,1704424320766,-1307.0,0.0003869,60]
[310259532,1704424320775,-150.0,0.0003869,60]
[310259533,1704424320784,-359.0,0.0003869,60]
[310259534,1704424320794,-1684.0,0.0003869,60]
[310259535,1704424320803,-150.0,0.0003869,60]
[310259536,1704424320813,-359.0,0.0003869,60]
[310259537,1704424320824,-3836.0,0.0003869,60]
[310259538,1704424320835,-1307.0,0.0003869,60]
[310259539,1704424320845,-1307.0,0.0003869,60]
[310259540,1704424320855,-250.57,0.0003869,60]
[310259541,1704424320864,-1684.0,0.0003869,60]
[310259542,1704424320873,-1307.0,0.0003869,60]
[310259543,1704424320882,-3836.0,0.0003869,60]
[310259544,1704424320893,-1307.0,0.0003869,60]
[310259545,1704424320903,-1684.0,0.0003869,60]
[310259546,1704424320912,-265.0,0.0003869,60]
[310259547,1704424320921,-362.0,0.0003869,60]
[310259548,1704424320930,-155.0,0.0003869,60]
[310259549,1704424320940,-868.0,0.0003869,60]
[310259550,1704424320952,-164.0,0.0003869,60]
[310259551,1704424320962,-319.0,0.0003869,60]
[310259552,1704424320971,-265.0,0.0003869,60]
[310259553,1704424320980,-854.0,0.0003869,60]
[310259554,1704424320989,-362.0,0.0003869,60]
[310259555,1704424320998,-868.0,0.0003869,60]
[310259556,1704424321006,-319.0,0.0003869,60]
[310259557,1704424321015,-854.0,0.0003869,60]
[310259558,1704424321024,-155.0,0.0003869,60]
[310259559,1704424321033,-164.0,0.0003869,60]
[310259560,1704424321043,-362.0,0.0003869,60]
[310259561,1704424321052,-868.0,0.0003869,60]
[310259562,1704424321061,-265.0,0.0003869,60]
[310259563,1704424321236,-362.0,0.0003869,60]
[310259564,1704424321246,-854.0,0.0003869,60]
[310259565,1704424321255,-319.0,0.0003869,60]
[310259566,1704424321264,-868.0,0.0003869,60]
[310259567,1704424321273,-155.0,0.0003869,60]
[310259568,1704424321282,-265.0,0.0003869,60]
[310259569,1704424321291,-164.0,0.0003869,60]
[310259570,1704424321302,-854.0,0.0003869,60]
[310259571,1704424321312,-319.0,0.0003869,60]
[310259572,1704424321321,-155.0,0.0003869,60]
[310259573,1704424321330,-164.0,0.0003869,60]
[310259574,1704424321339,-151.0,0.0003869,7]
[310259575,1704424321349,-157.40105,0.00038698,2]
[310259576,1704424321358,-150.0,0.00038699,2]
[310259577,1704424321367,-213630.75042101,0.000387,6]
[310259578,1704424321433,-500.0,0.00037808,3]
[310259579,1704424321444,-5022.32071108,0.000387,6]
[310259580,1704424321729,-277.75,0.00035606,10]
[310259581,1704424321739,-500.0,0.00035616,3]
[310259582,1704424321748,-500.0,0.00035616,3]
[310259583,1704424321757,-500.0,0.00035616,3]
[310259584,1704424321767,-500.0,0.0003589,3]
[310259585,1704424321776,-500.0,0.0003589,3]
[310259586,1704424321785,-500.0,0.00036164,3]
[310259587,1704424321795,-500.0,0.00038082,3]
[310259588,1704424321805,-500.0,0.00038356,3]
[310259589,1704424321814,-500.0,0.0003863,3]
[310259590,1704424321824,-29886.93363349,0.000387,6]
[310259591,1704424321838,-1765.20891081,0.000387,6]
[310259592,1704424321849,-761.51367295,0.000387,6]
[310259593,1704424321864,-297485.6153195,0.000387,6]
[310259594,1704424328336,-53258.68422908,0.000387,6]
[310259595,1704424333504,6112.1728,0.00022401,2]
[310259596,1704424438908,250.0,0.00022177,2]
[310259597,1704424664736,751.23969833,0.000192,2]
[310259598,1704424705593,159.04,0.00022343,2]
[310259599,1704424715749,2000.0,0.00022177,2]
[310259600,1704424747860,500.0,0.00022177,2]
[310259601,1704424795731,188.44,0.00022177,2]
[310259602,1704424795777,472.26,0.00022177,2]
[310259603,1704424802236,200.0,0.00022177,2]
[310259604,1704424831415,177.66,0.00016712,2]
[310259605,1704424856362,1055.64,0.00020259,2]
[310259606,1704424947874,161.28,0.0002247,10]
[310259607,1704424948117,161.28,0.00023204,10]
[310259608,1704424958998,177.36,0.00017742,2]
[310259609,1704425020265,1012.91,0.00022177,2]
[310259610,1704425023256,155.46,0.0002247,2]
[310259611,1704425046129,3282.92,0.00022286,2]
[310259612,1704425052306,23900.0,0.00022177,2]
[310259613,1704425068793,1333.47,0.00022119,2]
[310259614,1704425091011,555.75,0.00022177,2]
[310259615,1704425091778,150.0,0.00022459,2]
[310259616,1704425091939,171.4330426,0.00022499,2]
[310259617,1704425113705,301.47622861,0.00022499,2]
[310259618,1704425115846,471.9926114,0.00022499,2]
[310259619,1704425118496,1654.08515166,0.00022499,2]
[310259620,1704425126407,1043.41750133,0.00022499,2]
[310259621,1704425127658,898.41,0.00022177,2]
[310259622,1704425135123,840.87003552,0.00022499,2]
[310259623,1704425139802,5087.60778004,0.00022499,2]
[310259624,1704425142860,360.7182274,0.00022499,2]
[310259625,1704425143162,155.0,0.00022499,2]
[310259626,1704425154789,232.85,0.00022177,2]
[310259627,1704425159268,159.03,0.00022383,2]
[310259628,1704425160024,150.0,0.00022459,2]
[310259629,1704425164630,2000.0,0.00022199,2]
[310259630,1704425192361,471.9926114,0.00022499,2]
[310259631,1704425195003,1654.08515166,0.00022499,2]
[310259632,1704425204250,150.0,0.00022177,2]
[310259633,1704425207739,500.0,0.00022177,2]
[310259634,1704425209028,548.05618635,0.00022499,2]
[310259635,1704425228454,233.47108182,0.00022459,2]
[310259636,1704425252585,200.0,0.00022224,2]
[310259637,1704425261769,200.0,0.0002221,2]
[310259638,1704425281894,236.35,0.00022177,2]
[310259639,1704425284388,1002.85,0.00020259,2]
[310259640,1704425321385,471.9926114,0.000225,2]
[310259641,1704425338017,1654.08515166,0.000225,2]
[310259642,1704425368175,331.47,0.00022177,2]
[310259643,1704425377405,250.0,0.00022253,2]
[310259644,1704425407726,177.66,0.00016712,2]
[310259655,1704425431590,-5319.27465842,0.00022519,2]
[310259656,1704425431599,-360.7182274,0.0002252,2]
[310259657,1704425431609,-1654.08515166,0.0002252,2]
[310259658,1704425431619,-300.0,0.00022521,2]
[310259659,1704425431628,-150.0,0.00022521,2]
[310259660,1704425431638,-173.51084017,0.00022522,2]
[310259661,1704425431647,-1002.85,0.00022523,2]
[310259662,1704425431657,-155.46,0.00022588,2]
[310259663,1704425431667,-161.66,0.00022606,2]
[310259664,1704425431676,-155.46,0.00022707,2]
[310259665,1704425431685,-159.03,0.00022771,2]
[310259666,1704425431695,-155.46,0.00022825,2]
[310259667,1704425431704,-158.31496747,0.00022898,2]
[310259668,1704425431714,-155.46,0.00022943,2]
[310259669,1704425431724,-196.67207607,0.00022999,4]
[310259670,1704425431733,-169.39846557,0.00022999,4]
[310259671,1704425431742,-155.46,0.00023061,2]
[310259672,1704425431752,-1333.47,0.00023098,2]
[310259673,1704425431761,-166.74,0.00023099,2]
[310259674,1704425431770,-159.03,0.0002316,2]
[310259675,1704425431779,-155.46,0.0002318,2]
[310259676,1704425431789,-161.66,0.00023213,2]
[310259677,1704425431799,-1012.91,0.00023286,2]
[310259678,1704425431808,-155.46,0.00023298,2]
[310259679,1704425431817,-205.3781,0.00023358,2]
[310259680,1704425431826,-3009.7181,0.00023359,2]
[310259681,1704425431836,-182.9543675,0.00023359,2]
[310259682,1704425431845,-863.89603801,0.0002336,2]
[310259683,1704425431855,-182.95436749,0.00023378,2]
[310259684,1704425431864,-350.25883053,0.00023397,2]
[310259685,1704425431873,-182.95436749,0.00023397,2]
[310259686,1704425431883,-266.57975172,0.000234,2]
[310259687,1704425431893,-1279.63,0.000234,2]
[310259688,1704425431902,-155.46,0.00023416,2]
[310259689,1704425431912,-792.0120574,0.00023435,2]
[310259690,1704425431923,-158.31496739,0.00023437,2]
[310259691,1704425431932,-1281.2276995,0.0002344,2]
[310259692,1704425431941,-671.89376602,0.00023448,2]
[310259693,1704425431950,-841.70553436,0.00023448,2]
[310259694,1704425431960,-213.26757585,0.00023448,2]
[310259695,1704425431969,-5096.75757044,0.00023448,2]
[310259696,1704425431978,-548.76333089,0.00023448,2]
[310259697,1704425431987,-471.94203978,0.00023448,2]
[310259698,1704425431997,-302.11367425,0.00023449,2]
[310259699,1704425432007,-48450.10338649,0.0002345,2]
[310259700,1704425432016,-171.67360532,0.00023457,2]